[Event "Gibraltar Masters 18th"]
[Site "Gibraltar"]
[Date "2020.01.30"]
[Round "10.52"]
[White "Buckels, Valentin"]
[Black "Reimanis, Ritvars"]
[Result "1/2-1/2"]
[ECO "A13"]
[WhiteElo "2459"]
[BlackElo "2370"]
[PlyCount "123"]
[EventDate "2020.01.21"]
[EventType "swiss"]
[EventRounds "10"]
[EventCountry "GGB"]
[SourceTitle "BritBase"]
[Source "John Saunders"]
[SourceDate "2021.06.05"]
[SourceVersion "1"]
[SourceVersionDate "2021.06.05"]
[SourceQuality "1"]
[TimeControl "40/100:0"]
[WhiteClock "0:54:18"]
[BlackClock "0:53:40"]

1. Nf3 {[%emt 0:00:00]} Nf6 {[%emt 0:00:00]} 2. g3 {[%emt 0:00:00]} e6 {
[%emt 0:00:00]} 3. Bg2 {[%emt 0:00:00]} d5 {[%emt 0:00:00]} 4. O-O {[%emt 0:00:
00]} c5 {[%emt 0:00:00]} 5. c4 {[%emt 0:00:00]} d4 {[%emt 0:00:00]} 6. e3 {
[%emt 0:00:00]} Nc6 {[%emt 0:00:00]} 7. b3 {[%emt 0:00:00]} Bd6 {[%emt 0:00:00]
} 8. Na3 {[%emt 0:00:00]} e5 {[%emt 0:00:00]} 9. d3 {[%emt 0:00:00]} h6 {
[%emt 0:00:00]} 10. Nc2 {[%emt 0:00:00]} O-O {[%emt 0:00:00]} 11. a3 {[%emt 0:
00:00]} a5 {[%emt 0:00:00]} 12. Rb1 {[%emt 0:00:00]} e4 {[%emt 0:00:00]} 13.
Nfe1 {[%emt 0:00:00]} Qe7 {[%emt 0:00:00]} 14. exd4 {[%emt 0:00:00]} cxd4 {
[%emt 0:00:00]} 15. Bb2 {[%emt 0:00:00]} Rd8 {[%emt 0:00:00]} 16. Qe2 {[%emt 0:
00:00]} Bf5 {[%emt 0:00:00]} 17. Rd1 {[%emt 0:00:00]} exd3 {[%emt 0:00:00]} 18.
Qxe7 {[%emt 0:00:00]} Bxe7 {[%emt 0:00:00]} 19. Nxd3 {[%emt 0:00:00]} Ne4 {
[%emt 0:00:00]} 20. Rfe1 {[%emt 0:00:00]} Nc3 {[%emt 0:00:00]} 21. Rd2 {
[%emt 0:00:00]} Kf8 {[%emt 0:00:00]} 22. Nf4 {[%emt 0:00:00]} Bf6 {[%emt 0:00:
00]} 23. Nd5 {[%emt 0:00:00]} Bxc2 {[%emt 0:00:00]} 24. Rxc2 {[%emt 0:00:00]}
Nxd5 {[%emt 0:00:00]} 25. Bxd5 {[%emt 0:00:00]} Ne5 {[%emt 0:00:00]} 26. Kg2 {
[%emt 0:00:00]} a4 {[%emt 0:00:00]} 27. Bxd4 {[%emt 0:00:00]} axb3 {[%emt 0:00:
00]} 28. Rc3 {[%emt 0:00:00]} b2 {[%emt 0:00:00]} 29. Rb3 {[%emt 0:00:00]} Nxc4
{[%emt 0:00:00]} 30. Bc5+ {[%emt 0:00:00]} Nd6 {[%emt 0:00:00]} 31. Bxb7 {
[%emt 0:00:00]} Rab8 {[%emt 0:00:00]} 32. Rd1 {[%emt 0:00:00]} Be7 {[%emt 0:00:
33]} 33. Rxb2 {[%emt 0:00:21]} Rxb7 {[%emt 0:00:00]} 34. Rxd6 {[%emt 0:00:00]}
Bxd6 {[%emt 0:00:14]} 35. Bxd6+ {[%emt 0:00:00]} Rxd6 {[%emt 0:00:00]} 36. Rxb7
{[%emt 0:00:00]} Rd2 {[%emt 0:00:00]} 37. Rb3 {[%emt 0:00:00]} g5 {[%emt 0:00:
00]} 38. Kf3 {[%emt 0:00:00]} Kg7 {[%emt 0:00:00]} 39. h3 {[%emt 0:00:00]} h5 {
[%emt 0:00:00]} 40. g4 {[%emt 0:00:00]} hxg4+ {[%emt 0:00:01]} 41. hxg4 {
[%emt 0:00:58]} Rd4 {[%emt 0:01:25]} 42. Kg3 {[%emt 0:00:38]} Ra4 {[%emt 0:00:
00]} 43. f3 {[%emt 0:00:00]} Kg6 {[%emt 0:00:00]} 44. Kf2 {[%emt 0:00:00]} f5 {
[%emt 0:00:00]} 45. gxf5+ {[%emt 0:00:00]} Kxf5 {[%emt 0:00:00]} 46. Ke3 {
[%emt 0:00:00]} g4 {[%emt 0:00:00]} 47. fxg4+ {[%emt 0:00:00]} Rxg4 {[%emt 0:
00:00]} 48. Rb5+ {[%emt 0:00:00]} Ke6 {[%emt 0:00:00]} 49. Kd2 {[%emt 0:00:00]}
Kd6 {[%emt 0:00:00]} 50. Kc3 {[%emt 0:00:00]} Kc6 {[%emt 0:00:00]} 51. Rb8 {
[%emt 0:00:00]} Kc7 {[%emt 0:00:00]} 52. Rb4 {[%emt 0:00:00]} Rxb4 {[%emt 0:00:
00]} 53. axb4 {[%emt 0:00:00]} Kb6 {[%emt 0:00:00]} 54. Kc4 {[%emt 0:00:00]}
Kc6 {[%emt 0:00:00]} 55. b5+ {[%emt 0:00:00]} Kb6 {[%emt 0:00:00]} 56. Kb4 {
[%emt 0:00:00]} Kb7 {[%emt 0:00:00]} 57. Kc5 {[%emt 0:00:00]} Kc7 {[%emt 0:00:
00]} 58. b6+ {[%emt 0:00:00]} Kb7 {[%emt 0:00:00]} 59. Kb5 {[%emt 0:00:00]} Kb8
{[%emt 0:00:00]} 60. Ka6 {[%emt 0:00:00]} Ka8 {[%emt 0:00:00]} 61. b7+ {
[%emt 0:00:00]} Kb8 {[%emt 0:00:00]} 62. Kb6 {[%emt 0:00:00]} 1/2-1/2

[Event "Gibraltar Masters 18th"]
[Site "Gibraltar"]
[Date "2020.01.30"]
[Round "10.53"]
[White "Pratyusha, Bodda"]
[Black "Chigaev, Maksim"]
[Result "0-1"]
[ECO "A45"]
[WhiteElo "2267"]
[BlackElo "2616"]
[PlyCount "70"]
[EventDate "2020.01.21"]
[EventType "swiss"]
[EventRounds "10"]
[EventCountry "GGB"]
[SourceTitle "BritBase"]
[Source "John Saunders"]
[SourceDate "2021.06.05"]
[SourceVersion "1"]
[SourceVersionDate "2021.06.05"]
[SourceQuality "1"]
[TimeControl "40/100:0"]
[WhiteClock "0:16:08"]
[BlackClock "1:26:47"]

1. d4 {[%emt 0:02:44]} Nf6 {[%emt 0:00:00]} 2. Bf4 {[%emt 0:00:00]} d6 {
[%emt 0:00:00]} 3. Nc3 {[%emt 0:00:00]} Nbd7 {[%emt 0:00:00]} 4. Nf3 {[%emt 0:
00:00]} c5 {[%emt 0:00:00]} 5. d5 {[%emt 0:00:00]} Qa5 {[%emt 0:00:00]} 6. Bd2
{[%emt 0:00:00]} b5 {[%emt 0:00:00]} 7. a3 {[%emt 0:00:00]} a6 {[%emt 0:00:00]}
8. e4 {[%emt 0:00:00]} Qc7 {[%emt 0:00:00]} 9. Qe2 {[%emt 0:00:00]} g6 {
[%emt 0:00:00]} 10. Bf4 {[%emt 0:00:00]} Nh5 {[%emt 0:00:00]} 11. Be3 {[%emt 0:
00:00]} Bg7 {[%emt 0:00:00]} 12. g4 {[%emt 0:00:00]} Nhf6 {[%emt 0:00:00]} 13.
Nd2 {[%emt 0:00:00]} h5 {[%emt 0:00:00]} 14. g5 {[%emt 0:00:00]} Ng4 {[%emt 0:
00:00]} 15. Bf4 {[%emt 0:00:00]} Rb8 {[%emt 0:00:00]} 16. h3 {[%emt 0:00:00]}
Nge5 {[%emt 0:00:00]} 17. Qd1 {[%emt 0:00:00]} b4 {[%emt 0:00:00]} 18. axb4 {
[%emt 0:00:00]} cxb4 {[%emt 0:00:00]} 19. Na4 {[%emt 0:00:00]} e6 {[%emt 0:00:
00]} 20. Be3 {[%emt 0:00:00]} exd5 {[%emt 0:00:00]} 21. exd5 {[%emt 0:00:00]}
Bb7 {[%emt 0:00:00]} 22. c4 {[%emt 0:00:00]} bxc3 {[%emt 0:00:00]} 23. Nxc3 {
[%emt 0:00:00]} Nc5 {[%emt 0:00:00]} 24. Bxc5 {[%emt 0:00:00]} dxc5 {[%emt 0:
00:00]} 25. Nde4 {[%emt 0:00:00]} O-O {[%emt 0:00:00]} 26. Bxa6 {[%emt 0:00:00]
} Bxa6 {[%emt 0:00:00]} 27. Rxa6 {[%emt 0:00:00]} Rxb2 {[%emt 0:00:00]} 28. f4
{[%emt 0:00:00]} Nc4 {[%emt 0:00:00]} 29. Qc1 {[%emt 0:00:00]} Re8 {[%emt 0:00:
00]} 30. O-O {[%emt 0:00:00]} Qc8 {[%emt 0:00:00]} 31. Rf6 {[%emt 0:00:00]}
Qxh3 {[%emt 0:00:00]} 32. Qxb2 {[%emt 0:00:00]} Nxb2 {[%emt 0:00:00]} 33. d6 {
[%emt 0:00:00]} Qe3+ {[%emt 0:00:00]} 34. Kh2 {[%emt 0:00:00]} Rxe4 {[%emt 0:
00:00]} 35. Nxe4 {[%emt 0:00:00]} Qxe4 {[%emt 0:00:00]} 0-1

[Event "Gibraltar Masters 18th"]
[Site "Gibraltar"]
[Date "2020.01.30"]
[Round "10.55"]
[White "Moroni, Luca Jr"]
[Black "Melia, Salome"]
[Result "1-0"]
[ECO "D02"]
[WhiteElo "2532"]
[BlackElo "2368"]
[PlyCount "101"]
[EventDate "2020.01.21"]
[EventType "swiss"]
[EventRounds "10"]
[EventCountry "GGB"]
[SourceTitle "BritBase"]
[Source "John Saunders"]
[SourceDate "2021.06.05"]
[SourceVersion "1"]
[SourceVersionDate "2021.06.05"]
[SourceQuality "1"]
[TimeControl "40/100:0"]
[WhiteClock "1:24:55"]
[BlackClock "0:46:41"]

1. d4 {[%emt 0:00:00]} Nf6 {[%emt 0:00:00]} 2. Bf4 {[%emt 0:00:00]} d5 {
[%emt 0:00:00]} 3. e3 {[%emt 0:00:00]} e6 {[%emt 0:00:00]} 4. Nf3 {[%emt 0:00:
00]} Bd6 {[%emt 0:00:00]} 5. Bg3 {[%emt 0:00:00]} O-O {[%emt 0:00:00]} 6. Nbd2
{[%emt 0:00:00]} c5 {[%emt 0:00:00]} 7. c3 {[%emt 0:00:00]} Qc7 {[%emt 0:00:00]
} 8. dxc5 {[%emt 0:00:00]} Qxc5 {[%emt 0:00:00]} 9. Bd3 {[%emt 0:00:00]} Nbd7 {
[%emt 0:00:00]} 10. Qc2 {[%emt 0:00:00]} e5 {[%emt 0:00:00]} 11. e4 {[%emt 0:
00:00]} dxe4 {[%emt 0:00:00]} 12. Nxe4 {[%emt 0:00:00]} Nxe4 {[%emt 0:00:00]}
13. Bxe4 {[%emt 0:00:00]} Nf6 {[%emt 0:00:00]} 14. Rd1 {[%emt 0:00:00]} Bg4 {
[%emt 0:00:00]} 15. O-O {[%emt 0:00:00]} Bh5 {[%emt 0:00:00]} 16. Rd2 {[%emt 0:
00:00]} Rfe8 {[%emt 0:00:00]} 17. Bxb7 {[%emt 0:00:00]} Rab8 {[%emt 0:00:00]}
18. Be4 {[%emt 0:00:00]} Rxb2 {[%emt 0:00:00]} 19. Bxh7+ {[%emt 0:00:00]} Nxh7
{[%emt 0:00:00]} 20. Qxb2 {[%emt 0:00:00]} Bxf3 {[%emt 0:00:00]} 21. gxf3 {
[%emt 0:00:00]} Ng5 {[%emt 0:00:00]} 22. Qb7 {[%emt 0:00:00]} Re6 {[%emt 0:00:
00]} 23. Rd5 {[%emt 0:00:00]} Qa3 {[%emt 0:00:00]} 24. Rfd1 {[%emt 0:00:00]}
Bf8 {[%emt 0:00:00]} 25. Rd8 {[%emt 0:00:00]} Kh7 {[%emt 0:00:00]} 26. h4 {
[%emt 0:00:00]} Rb6 {[%emt 0:00:00]} 27. Qd5 {[%emt 0:00:00]} Ne6 {[%emt 0:00:
00]} 28. Rc8 {[%emt 0:00:00]} f6 {[%emt 0:00:00]} 29. h5 {[%emt 0:00:00]} Qe7 {
[%emt 0:00:52]} 30. Qe4+ {[%emt 0:00:00]} Kg8 {[%emt 0:00:07]} 31. Qg6 {
[%emt 0:00:00]} Qf7 {[%emt 0:00:07]} 32. Qxf7+ {[%emt 0:00:00]} Kxf7 {[%emt 0:
00:00]} 33. Rd7+ {[%emt 0:00:00]} Kg8 {[%emt 0:00:00]} 34. Rxa7 {[%emt 0:00:00]
} Kh7 {[%emt 0:00:00]} 35. Raa8 {[%emt 0:00:00]} Kh6 {[%emt 0:00:01]} 36. Rxf8
{[%emt 0:00:00]} Nxf8 {[%emt 0:00:00]} 37. Rxf8 {[%emt 0:00:00]} Kxh5 {[%emt 0:
00:00]} 38. f4 {[%emt 0:00:00]} exf4 {[%emt 0:00:00]} 39. Bxf4 {[%emt 0:00:00]}
Ra6 {[%emt 0:00:00]} 40. Be3 {[%emt 0:00:00]} Rxa2 {[%emt 0:00:00]} 41. c4 {
[%emt 0:00:00]} Kg6 {[%emt 0:01:40]} 42. c5 {[%emt 0:00:00]} Rc2 {[%emt 0:00:
00]} 43. Kg2 {[%emt 0:00:00]} Kf5 {[%emt 0:00:00]} 44. Rf7 {[%emt 0:00:00]} g5
{[%emt 0:00:00]} 45. Bd4 {[%emt 0:00:00]} Ke4 {[%emt 0:00:00]} 46. Bxf6 {
[%emt 0:00:00]} Rxc5 {[%emt 0:00:00]} 47. Rg7 {[%emt 0:00:00]} Kf4 {[%emt 0:00:
00]} 48. Bd4 {[%emt 0:00:00]} Ra5 {[%emt 0:00:00]} 49. Be3+ {[%emt 0:00:00]}
Kg4 {[%emt 0:00:00]} 50. Rc7 {[%emt 0:00:00]} Ra8 {[%emt 0:00:00]} 51. Rc4+ {
[%emt 0:00:00]} 1-0

[Event "Gibraltar Masters 18th"]
[Site "Gibraltar"]
[Date "2020.01.30"]
[Round "10.56"]
[White "Bellon Lopez, Juan Manuel"]
[Black "Kosteniuk, Alexandra"]
[Result "1/2-1/2"]
[ECO "D01"]
[WhiteElo "2348"]
[BlackElo "2504"]
[PlyCount "89"]
[EventDate "2020.01.21"]
[EventType "swiss"]
[EventRounds "10"]
[EventCountry "GGB"]
[SourceTitle "BritBase"]
[Source "John Saunders"]
[SourceDate "2021.06.05"]
[SourceVersion "1"]
[SourceVersionDate "2021.06.05"]
[SourceQuality "1"]
[TimeControl "40/100:0"]
[WhiteClock "0:44:46"]
[BlackClock "0:52:13"]

1. d4 {[%emt 0:00:00]} Nf6 {[%emt 0:00:00]} 2. Bg5 {[%emt 0:00:00]} d5 {
[%emt 0:00:00]} 3. Bxf6 {[%emt 0:00:00]} gxf6 {[%emt 0:00:00]} 4. e3 {[%emt 0:
00:00]} c5 {[%emt 0:00:00]} 5. Nc3 {[%emt 0:00:00]} e6 {[%emt 0:00:00]} 6. Qh5
{[%emt 0:00:00]} f5 {[%emt 0:00:00]} 7. Nf3 {[%emt 0:00:00]} cxd4 {[%emt 0:00:
00]} 8. Ne5 {[%emt 0:00:00]} Qf6 {[%emt 0:00:00]} 9. exd4 {[%emt 0:00:00]} a6 {
[%emt 0:00:00]} 10. Na4 {[%emt 0:00:00]} Nd7 {[%emt 0:00:00]} 11. f4 {[%emt 0:
00:00]} Nxe5 {[%emt 0:00:00]} 12. fxe5 {[%emt 0:00:00]} Qd8 {[%emt 0:00:00]}
13. Nc3 {[%emt 0:00:00]} h6 {[%emt 0:00:00]} 14. g4 {[%emt 0:00:00]} fxg4 {
[%emt 0:00:00]} 15. Be2 {[%emt 0:00:00]} Qg5 {[%emt 0:00:00]} 16. Qxg5 {
[%emt 0:00:00]} hxg5 {[%emt 0:00:00]} 17. Bxg4 {[%emt 0:00:00]} Bg7 {[%emt 0:
00:00]} 18. O-O {[%emt 0:00:00]} Bd7 {[%emt 0:00:00]} 19. Nxd5 {[%emt 0:00:00]}
Bxe5 {[%emt 0:00:00]} 20. dxe5 {[%emt 0:00:00]} exd5 {[%emt 0:00:00]} 21. Bxd7+
{[%emt 0:00:00]} Kxd7 {[%emt 0:00:00]} 22. Rxf7+ {[%emt 0:00:00]} Ke6 {[%emt 0:
00:00]} 23. Rxb7 {[%emt 0:00:00]} Rab8 {[%emt 0:00:00]} 24. Rb3 {[%emt 0:00:00]
} Kxe5 {[%emt 0:00:00]} 25. Re1+ {[%emt 0:00:00]} Kf4 {[%emt 0:00:00]} 26. Rxb8
{[%emt 0:00:00]} Rxb8 {[%emt 0:00:00]} 27. b3 {[%emt 0:00:00]} Rc8 {[%emt 0:00:
00]} 28. Re2 {[%emt 0:00:00]} d4 {[%emt 0:00:00]} 29. Kf1 {[%emt 0:00:00]} Rc3
{[%emt 0:00:00]} 30. Ke1 {[%emt 0:00:00]} g4 {[%emt 0:00:00]} 31. Rd2 {[%emt 0:
00:00]} Ke4 {[%emt 0:00:00]} 32. Rg2 {[%emt 0:00:00]} Kf4 {[%emt 0:00:00]} 33.
Kd2 {[%emt 0:00:00]} Rh3 {[%emt 0:00:00]} 34. Re2 {[%emt 0:00:00]} a5 {[%emt 0:
00:00]} 35. a4 {[%emt 0:00:00]} Rc3 {[%emt 0:00:00]} 36. Rf2+ {[%emt 0:00:00]}
Ke4 {[%emt 0:00:00]} 37. Rg2 {[%emt 0:00:00]} Kf4 {[%emt 0:00:00]} 38. Rf2+ {
[%emt 0:00:00]} Ke4 {[%emt 0:00:00]} 39. Rg2 {[%emt 0:00:00]} Kf4 {[%emt 0:00:
00]} 40. Re2 {[%emt 0:00:00]} Rh3 {[%emt 0:00:08]} 41. Rf2+ {[%emt 0:00:00]}
Ke4 {[%emt 0:00:00]} 42. Re2+ {[%emt 0:00:00]} Kf4 {[%emt 0:00:00]} 43. Rf2+ {
[%emt 0:00:00]} Ke4 {[%emt 0:00:00]} 44. Ke2 {[%emt 0:00:00]} Rc3 {[%emt 0:00:
00]} 45. Kd2 {[%emt 0:00:00]} 1/2-1/2

[Event "Gibraltar Masters 18th"]
[Site "Gibraltar"]
[Date "2020.01.30"]
[Round "10.57"]
[White "Bilguun, Sumiya"]
[Black "Padmini, Rout"]
[Result "1/2-1/2"]
[ECO "C07"]
[WhiteElo "2486"]
[BlackElo "2369"]
[PlyCount "81"]
[EventDate "2020.01.21"]
[EventType "swiss"]
[EventRounds "10"]
[EventCountry "GGB"]
[SourceTitle "BritBase"]
[Source "John Saunders"]
[SourceDate "2021.06.05"]
[SourceVersion "1"]
[SourceVersionDate "2021.06.05"]
[SourceQuality "1"]
[TimeControl "40/100:0"]

1. e4 {[%emt 0:40:58]} e6 {[%emt 0:00:11]} 2. d4 {[%emt 0:00:14]} d5 {[%emt 0:
00:08]} 3. Nd2 {[%emt 0:01:13]} c5 {[%emt 0:00:10]} 4. Ngf3 {[%emt 0:00:24]}
cxd4 {[%emt 0:00:19]} 5. exd5 {[%emt 0:00:06]} Qxd5 {[%emt 0:00:07]} 6. Bc4 {
[%emt 0:00:05]} Qd7 {[%emt 0:00:11]} 7. O-O {[%emt 0:00:11]} Nc6 {[%emt 0:00:
09]} 8. Nb3 {[%emt 0:00:08]} a6 {[%emt 0:00:20]} 9. a4 {[%emt 0:00:12]} Nf6 {
[%emt 0:00:43]} 10. Qe2 {[%emt 0:03:15]} Bd6 {[%emt 0:02:04]} 11. Rd1 {[%emt 0:
00:25]} Qc7 {[%emt 0:02:43]} 12. Nbxd4 {[%emt 0:07:12]} O-O {[%emt 0:04:54]}
13. Nxc6 {[%emt 0:17:35]} bxc6 {[%emt 0:00:52]} 14. b3 {[%emt 0:02:27]} Nd5 {
[%emt 0:04:27]} 15. Bb2 {[%emt 0:00:43]} a5 {[%emt 0:01:02]} 16. g3 {[%emt 0:
10:11]} h6 {[%emt 0:02:40]} 17. Ne5 {[%emt 0:12:26]} f6 {[%emt 0:09:28]} 18.
Ng6 {[%emt 0:01:24]} Re8 {[%emt 0:00:48]} 19. Bd3 {[%emt 0:02:55]} Bb7 {
[%emt 0:05:48]} 20. Nh4 {[%emt 0:21:19]} Bf8 {[%emt 0:18:26]} 21. Bg6 {[%emt 0:
04:19]} Re7 {[%emt 0:00:42]} 22. Bh5 {[%emt 0:02:36]} c5 {[%emt 0:11:31]} 23.
c4 {[%emt 0:04:12]} Nb4 {[%emt 0:01:18]} 24. Rd2 {[%emt 0:04:24]} Qc6 {[%emt 0:
08:48]} 25. Bf3 {[%emt 0:00:26]} Qb6 {[%emt 0:00:07]} 26. Bxb7 {[%emt 0:03:39]}
Rxb7 {[%emt 0:00:32]} 27. Rad1 {[%emt 0:00:11]} e5 {[%emt 0:08:16]} 28. Qh5 {
[%emt 0:00:07]} Qe6 {[%emt 0:02:03]} 29. Ng6 {[%emt 0:00:15]} Nc6 {[%emt 0:02:
03]} 30. Nxf8 {[%emt 0:00:24]} Rxf8 {[%emt 0:00:17]} 31. Rd6 {[%emt 0:00:11]}
Qc8 {[%emt 0:00:17]} 32. Ba3 {[%emt 0:00:58]} Nd4 {[%emt 0:04:56]} 33. Bxc5 {
[%emt 0:01:58]} g6 {[%emt 0:12:03]} 34. Qxg6+ {[%emt 0:01:27]} Rg7 {[%emt 0:00:
05]} 35. Qh5 {[%emt 0:00:59]} Rg5 {[%emt 0:00:55]} 36. Qxh6 {[%emt 0:01:38]}
Qxc5 {[%emt 0:01:10]} 37. Rd7 {[%emt 0:02:26]} Rf7 {[%emt 0:01:44]} 38. Rd8+ {
[%emt 0:00:39]} Rf8 {[%emt 0:00:19]} 39. Rd7 {[%emt 0:01:09]} Rf7 {[%emt 0:00:
43]} 40. Rd8+ {[%emt 0:00:37]} Rf8 {[%emt 0:00:07]} 41. Rd7 {[%emt 0:15:03]}
1/2-1/2

[Event "Gibraltar Masters 18th Play-Off"]
[Site "Gibraltar"]
[Date "2020.01.30"]
[Round "1.1"]
[White "Esipenko, Andrey"]
[Black "Paravyan, David"]
[Result "1/2-1/2"]
[ECO "A38"]
[WhiteElo "2654"]
[BlackElo "2629"]
[PlyCount "66"]
[EventDate "2020.01.30"]
[EventType "k.o. (rapid)"]
[EventCountry "GGB"]
[SourceTitle "BritBase"]
[Source "John Saunders"]
[SourceDate "2021.06.05"]
[SourceVersion "1"]
[SourceVersionDate "2021.06.05"]
[SourceQuality "1"]
[TimeControl "40/100:0"]
[WhiteClock "0:01:40"]
[BlackClock "0:03:02"]

1. c4 {[%emt 0:00:00]} c5 {[%emt 0:00:00]} 2. g3 {[%emt 0:00:00]} g6 {[%emt 0:
00:00]} 3. Bg2 {[%emt 0:00:00]} Bg7 {[%emt 0:00:00]} 4. Nc3 {[%emt 0:00:00]}
Nc6 {[%emt 0:00:00]} 5. d3 {[%emt 0:00:00]} a6 {[%emt 0:00:00]} 6. Nf3 {
[%emt 0:00:00]} Nf6 {[%emt 0:00:00]} 7. O-O {[%emt 0:00:00]} O-O {[%emt 0:00:
00]} 8. d4 {[%emt 0:00:00]} cxd4 {[%emt 0:00:00]} 9. Nxd4 {[%emt 0:00:00]} Nxd4
{[%emt 0:00:00]} 10. Qxd4 {[%emt 0:00:00]} d6 {[%emt 0:00:00]} 11. Qd3 {
[%emt 0:00:00]} Bf5 {[%emt 0:00:00]} 12. e4 {[%emt 0:00:00]} Be6 13. b3 Rb8 {
[%emt 0:00:00]} 14. Be3 {[%emt 0:00:00]} Ng4 {[%emt 0:00:00]} 15. Bd4 {[%emt 0:
00:00]} Bxd4 {[%emt 0:00:00]} 16. Qxd4 {[%emt 0:00:00]} b5 {[%emt 0:00:00]} 17.
cxb5 {[%emt 0:00:00]} axb5 {[%emt 0:00:00]} 18. Nd5 {[%emt 0:00:00]} Ne5 {
[%emt 0:00:00]} 19. Rfc1 {[%emt 0:00:00]} Bxd5 {[%emt 0:00:00]} 20. exd5 {
[%emt 0:00:00]} b4 {[%emt 0:00:00]} 21. Rc2 {[%emt 0:00:00]} Qb6 {[%emt 0:00:
00]} 22. Qd2 {[%emt 0:00:00]} Rfc8 {[%emt 0:00:00]} 23. Rac1 {[%emt 0:00:00]}
Rxc2 {[%emt 0:00:00]} 24. Rxc2 {[%emt 0:00:00]} Kg7 {[%emt 0:00:00]} 25. h3 {
[%emt 0:00:00]} h5 {[%emt 0:00:00]} 26. Kh2 {[%emt 0:00:00]} Rb7 {[%emt 0:00:
00]} 27. f4 {[%emt 0:00:00]} Nd7 {[%emt 0:00:00]} 28. Rc6 {[%emt 0:00:00]} Qa5
{[%emt 0:00:00]} 29. a4 {[%emt 0:00:00]} Qa7 {[%emt 0:00:00]} 30. Qe2 {[%emt 0:
00:00]} Nf6 {[%emt 0:00:00]} 31. Qd2 {[%emt 0:00:00]} Nd7 {[%emt 0:00:00]} 32.
Rc4 {[%emt 0:00:00]} Qb6 {[%emt 0:00:00]} 33. Rc6 {[%emt 0:00:00]} Qa7 1/2-1/2

[Event "Gibraltar Masters 18th Play-Off"]
[Site "Gibraltar"]
[Date "2020.01.30"]
[Round "1.1"]
[White "Yuffa, Daniil"]
[Black "Wang, Hao"]
[Result "0-1"]
[ECO "D30"]
[WhiteElo "2566"]
[BlackElo "2758"]
[PlyCount "104"]
[EventDate "2020.01.30"]
[EventType "k.o. (rapid)"]
[EventCountry "GGB"]
[SourceTitle "BritBase"]
[Source "John Saunders"]
[SourceDate "2021.06.05"]
[SourceVersion "1"]
[SourceVersionDate "2021.06.05"]
[SourceQuality "1"]
[TimeControl "40/100:0"]
[WhiteClock "0:00:14"]
[BlackClock "0:02:09"]

1. d4 {[%emt 0:00:00]} Nf6 {[%emt 0:00:00]} 2. c4 {[%emt 0:00:00]} e6 {[%emt 0:
00:00]} 3. g3 {[%emt 0:00:00]} d5 {[%emt 0:00:00]} 4. Bg2 {[%emt 0:00:00]} Be7
{[%emt 0:00:00]} 5. Nf3 {[%emt 0:00:00]} O-O {[%emt 0:00:00]} 6. O-O {[%emt 0:
00:00]} dxc4 {[%emt 0:00:00]} 7. Qc2 {[%emt 0:00:00]} c6 {[%emt 0:00:00]} 8.
Qxc4 {[%emt 0:00:00]} b5 {[%emt 0:00:00]} 9. Qc2 {[%emt 0:00:00]} Bb7 {[%emt 0:
00:00]} 10. Bg5 {[%emt 0:00:00]} Nbd7 {[%emt 0:00:00]} 11. Rd1 {[%emt 0:00:00]}
Qb6 {[%emt 0:00:00]} 12. Nc3 {[%emt 0:00:00]} h6 {[%emt 0:00:00]} 13. Bxf6 {
[%emt 0:00:00]} Nxf6 {[%emt 0:00:00]} 14. Ne5 {[%emt 0:00:00]} Rfd8 {[%emt 0:
00:00]} 15. Ne4 {[%emt 0:00:00]} Rxd4 {[%emt 0:00:00]} 16. Nxf6+ {[%emt 0:00:
00]} Bxf6 {[%emt 0:00:00]} 17. Nd7 {[%emt 0:00:00]} Qd8 {[%emt 0:00:00]} 18.
Nxf6+ {[%emt 0:00:00]} Qxf6 {[%emt 0:00:00]} 19. Rxd4 {[%emt 0:00:00]} Qxd4 {
[%emt 0:00:00]} 20. Rd1 {[%emt 0:00:00]} Qb6 {[%emt 0:00:00]} 21. Rd7 {[%emt 0:
00:00]} b4 {[%emt 0:00:00]} 22. Qd2 {[%emt 0:00:00]} Rf8 {[%emt 0:00:00]} 23.
e3 {[%emt 0:00:31]} Ba8 {[%emt 0:00:00]} 24. h4 {[%emt 0:00:53]} c5 {[%emt 0:
00:00]} 25. Rd6 {[%emt 0:00:00]} Qb8 {[%emt 0:00:00]} 26. Bxa8 {[%emt 0:00:00]}
Qxa8 {[%emt 0:00:00]} 27. Qd3 {[%emt 0:00:00]} Qf3 {[%emt 0:00:00]} 28. b3 {
[%emt 0:00:00]} Qf6 {[%emt 0:00:00]} 29. Kg2 {[%emt 0:00:00]} Qe5 {[%emt 0:00:
00]} 30. Rd7 {[%emt 0:00:00]} a5 {[%emt 0:00:00]} 31. Ra7 {[%emt 0:00:06]} Qb8
{[%emt 0:00:00]} 32. Rd7 {[%emt 0:00:01]} a4 {[%emt 0:00:00]} 33. Qe4 {[%emt 0:
00:00]} axb3 {[%emt 0:00:00]} 34. axb3 {[%emt 0:00:00]} Qc8 {[%emt 0:00:00]}
35. Rd6 {[%emt 0:00:00]} Rd8 {[%emt 0:00:00]} 36. Rb6 {[%emt 0:00:00]} Qd7 {
[%emt 0:00:00]} 37. Kh2 {[%emt 0:00:03]} Qd3 {[%emt 0:00:00]} 38. Qxd3 {
[%emt 0:00:00]} Rxd3 {[%emt 0:00:00]} 39. Rc6 {[%emt 0:00:00]} Rc3 {[%emt 0:00:
00]} 40. Rc8+ {[%emt 0:00:00]} Kh7 {[%emt 0:00:00]} 41. h5 {[%emt 0:01:29]} g6
{[%emt 0:01:05]} 42. Rc7 {[%emt 0:00:01]} Kg7 {[%emt 0:00:00]} 43. g4 {[%emt 0:
00:00]} gxh5 {[%emt 0:00:01]} 44. gxh5 {[%emt 0:00:00]} Kf6 {[%emt 0:00:00]}
45. Kg3 {[%emt 0:00:00]} Kg5 {[%emt 0:00:00]} 46. Rxf7 {[%emt 0:00:06]} Rxb3 {
[%emt 0:00:00]} 47. f4+ {[%emt 0:00:00]} Kxh5 {[%emt 0:00:00]} 48. Kf3 {
[%emt 0:00:00]} c4 {[%emt 0:00:09]} 49. Rf6 {[%emt 0:00:00]} c3 {[%emt 0:00:04]
} 50. Ke2 {[%emt 0:00:03]} c2 {[%emt 0:00:00]} 51. Kd2 {[%emt 0:00:00]} Rc3 {
[%emt 0:00:00]} 52. Kc1 {[%emt 0:00:00]} b3 {[%emt 0:00:00]} 0-1